bitfinex-derivatives/quotes_BTCF0:USTF0_20240830
["timestamp","ask_amount","ask_price","bid_price","bid_amount"]
[1725053108215,0.23503081,59054.0,59053.0,0.153073]
[1725053108712,0.23503081,59054.0,59053.0,0.0684]
[1725053108915,0.73503081,59054.0,59053.0,0.0684]
[1725053109106,0.31970281,59054.0,59053.0,0.0684]
[1725053109918,0.81970281,59054.0,59053.0,0.0684]
[1725053110217,0.31970281,59054.0,59053.0,0.0684]
[1725053110919,0.81970281,59054.0,59053.0,0.0684]
[1725053111419,0.31970281,59054.0,59053.0,0.0684]
[1725053111912,0.81970281,59054.0,59053.0,0.01]
[1725053112314,0.31970281,59054.0,59053.0,0.01]
[1725053112912,0.73503081,59054.0,59053.0,0.01]
[1725053113315,0.23503081,59054.0,59053.0,0.01]
[1725053113823,0.73503081,59054.0,59053.0,0.01]
[1725053114828,0.88045264,59054.0,59053.0,0.01]
[1725053115114,0.73503081,59054.0,59053.0,0.01]
[1725053117115,0.79578064,59054.0,59053.0,0.01]
[1725053117809,0.73503081,59054.0,59053.0,0.01]
[1725053119623,1.32770281,59054.0,59053.0,0.01]
[1725053119923,1.30378064,59054.0,59053.0,0.01]
[1725053120220,0.79578064,59054.0,59053.0,0.01]
[1725053120423,0.73503081,59054.0,59053.0,0.01]
[1725053122621,0.81970281,59054.0,59053.0,0.01]
[1725053123219,0.31970281,59054.0,59053.0,0.01]
[1725053125125,0.68050281,59054.0,59053.0,0.01]
[1725053125627,0.31970281,59054.0,59053.0,0.01]
[1725053125815,0.68050281,59054.0,59053.0,0.01]
[1725053126519,0.59583081,59054.0,59053.0,0.01]
[1725053127018,0.68050281,59054.0,59053.0,0.01]
[1725053128930,0.31970281,59054.0,59053.0,0.01]
[1725053129131,0.68050281,59054.0,59053.0,0.01]
[1725053130325,0.31970281,59054.0,59053.0,0.01]
[1725053130630,0.68050281,59054.0,59053.0,0.01]
[1725053132924,0.59583081,59054.0,59053.0,0.01]
[1725053139041,0.43574863,59054.0,59053.0,0.01]
[1725053140040,0.52042063,59054.0,59053.0,0.01]
[1725053141442,0.15962063,59054.0,59053.0,0.01]
[1725053144636,0.52042063,59054.0,59053.0,0.01]
[1725053147844,0.58117409,59054.0,59053.0,0.01]
[1725053148145,0.22037409,59054.0,59053.0,0.01]
[1725053155040,0.15962063,59054.0,59053.0,0.01]
[1725053159252,0.65962063,59054.0,59053.0,0.01]
[1725053161848,0.65962063,59054.0,59053.0,0.094673]
[1725053162051,0.70382863,59054.0,59053.0,0.094673]
[1725053162254,0.57494863,59054.0,59053.0,0.094673]
[1725053163047,0.63570209,59054.0,59053.0,0.094673]
[1725053163358,0.63570209,59054.0,59053.0,0.179346]
[1725053170157,0.57494863,59054.0,59053.0,0.179346]
[1725053170357,0.57494863,59054.0,59053.0,0.264019]
[1725053170561,0.5,59060.0,59053.0,1.576692]
[1725053170766,0.5,59066.0,59065.0,0.169312]
[1725053170969,0.12025397,59067.0,59066.0,0.16931]
[1725053170970,0.15048786,59067.0,59066.0,0.16931]
[1725053171149,0.03048786,59067.0,59066.0,0.16931]
[1725053171352,0.00025397,59067.0,59066.0,1.361885]
[1725053172652,0.00125397,59067.0,59066.0,1.367885]
[1725053173364,0.00100097,59067.0,59066.0,1.4051677]
[1725053173859,0.00100097,59067.0,59066.0,1.4649677]
[1725053175162,0.00100097,59067.0,59066.0,2.1865677]
[1725053175364,0.00100097,59067.0,59066.0,2.3065677]
[1725053176656,0.00100097,59067.0,59066.0,2.276285]
[1725053177857,0.00100097,59067.0,59066.0,1.554685]
[1725053178053,0.00100097,59067.0,59066.0,2.276285]
[1725053183262,0.00100097,59067.0,59066.0,2.36094]
[1725053186165,0.00100097,59067.0,59066.0,1.63934]
[1725053186364,0.00100097,59067.0,59066.0,2.36094]
[1725053186567,0.00100097,59067.0,59066.0,1.63934]
[1725053186864,0.00100097,59067.0,59066.0,2.36094]
[1725053188364,0.00100097,59067.0,59066.0,2.24094]
[1725053188563,0.00100097,59067.0,59066.0,2.36094]
[1725053189977,0.00100097,59067.0,59066.0,2.24094]
[1725053190174,0.00100097,59067.0,59066.0,2.36094]
[1725053191475,0.00100097,59067.0,59066.0,2.24094]
[1725053191770,0.00100097,59067.0,59066.0,2.36094]
[1725053192272,0.00100097,59067.0,59066.0,1.63934]
[1725053192467,0.00100097,59067.0,59066.0,2.36094]
[1725053193976,0.00100097,59067.0,59066.0,1.63934]
[1725053194178,0.00100097,59067.0,59066.0,2.36094]
[1725053199775,0.00100097,59067.0,59066.0,1.63934]
[1725053199979,0.00100097,59067.0,59066.0,2.36094]
[1725053201279,9.7e-07,59067.0,59066.0,2.36094]
[1725053207791,0.11781852,59083.0,59082.0,0.169264]
[1725053208886,0.12981852,59083.0,59082.0,0.170264]
[1725053209094,0.14081852,59083.0,59082.0,0.171264]
[1725053209284,0.17164749,59083.0,59082.0,0.171264]
[1725053210790,0.23184749,59083.0,59082.0,0.171264]
[1725053213297,0.23184749,59083.0,59082.0,0.255896]
[1725053214903,0.11402897,59083.0,59082.0,0.255896]
[1725053221999,0.10202897,59083.0,59082.0,0.259896]
[1725053222591,0.09102897,59083.0,59082.0,0.258896]
[1725053222796,0.09102897,59083.0,59082.0,0.263896]
[1725053229303,0.03082897,59083.0,59082.0,0.263896]
[1725053229499,0.62112001,59086.0,59085.0,0.169256]
[1725053229710,0.12,59086.0,59085.0,0.169256]
[1725053229906,0.50025397,59088.0,59087.0,0.084625]
[1725053230500,0.53095792,59088.0,59087.0,0.084625]
[1725053230908,0.53095792,59088.0,59087.0,0.16925]
[1725053231111,0.53195792,59088.0,59087.0,0.16925]
[1725053232297,0.53295792,59088.0,59087.0,0.16925]
[1725053232498,0.53295792,59088.0,59087.0,0.253875]
[1725053238105,0.53295792,59088.0,59087.0,0.16925]
[1725053241711,0.53295792,59088.0,59087.0,0.253875]
[1725053242009,0.53295792,59088.0,59087.0,0.614675]
[1725053242010,0.59367991,59088.0,59087.0,0.614675]
[1725053244108,0.53295792,59088.0,59087.0,0.614675]
[1725053244308,0.03295792,59088.0,59087.0,0.614675]
[1725053246516,0.03295792,59088.0,59087.0,0.734675]
[1725053247913,0.31553202,59093.0,59092.0,0.169236]
[1725053248114,0.34549983,59093.0,59092.0,0.530036]
[1725053249013,0.35149983,59093.0,59092.0,0.531036]
[1725053249621,0.35749983,59093.0,59092.0,0.532036]
[1725053252208,0.41822182,59093.0,59092.0,0.532036]
[1725053252819,0.41822182,59093.0,59092.0,0.616654]
[1725053253015,0.41822182,59093.0,59092.0,0.675354]
[1725053253615,0.41822182,59093.0,59092.0,0.731754]
[1725053253922,0.04196781,59093.0,59092.0,0.731754]
[1725053258214,0.04196781,59093.0,59092.0,1.092554]
[1725053258815,0.04196781,59093.0,59092.0,1.12316265]
[1725053265521,0.04196781,59093.0,59092.0,1.092554]
[1725053267822,0.012,59093.0,59092.0,2.200234]
[1725053269020,0.012,59093.0,59092.0,2.284852]
[1725053270425,1e-06,59093.0,59092.0,2.284852]
[1725053277429,9.7e-07,59098.0,59097.0,0.33844]
[1725053277636,9.7e-07,59098.0,59097.0,0.81924]
[1725053277835,9.7e-07,59098.0,59097.0,1.92688]
[1725053278540,0.00800097,59098.0,59097.0,1.92788]
[1725053279125,0.01600097,59098.0,59097.0,1.92888]
[1725053280835,9.7e-07,59098.0,59097.0,1.92888]
[1725053283843,9.7e-07,59098.0,59097.0,2.32079932]
[1725053284442,9.7e-07,59098.0,59097.0,1.59919932]
[1725053284641,9.7e-07,59098.0,59097.0,2.32079932]
[1725053285045,0.50799107,59115.0,59114.0,0.084586]
[1725053285245,0.5,59115.0,59114.0,0.05527751]
[1725053285434,0.53016073,59115.0,59114.0,0.05527751]
[1725053285745,0.53870551,59115.0,59114.0,0.05527751]
[1725053286928,0.53870551,59115.0,59114.0,0.05627751]
[1725053287242,0.53870551,59115.0,59114.0,0.05727751]
[1725053290436,0.5994275,59115.0,59114.0,0.05727751]
[1725053290746,0.59088272,59115.0,59114.0,0.14186351]
[1725053291339,0.53016073,59115.0,59114.0,0.14186351]
[1725053292436,0.03016073,59115.0,59114.0,0.14186351]
[1725053292747,0.0569,59116.0,59115.0,0.253755]
[1725053293044,0.08787369,59116.0,59115.0,0.253755]
[1725053293244,0.08787369,59116.0,59115.0,0.373755]
[1725053293442,0.03097369,59116.0,59115.0,0.373755]
[1725053293647,0.5,59118.0,59117.0,0.169164]
[1725053294648,0.53062488,59118.0,59117.0,0.169164]
[1725053305454,0.09134687,59118.0,59117.0,0.169164]
[1725053306246,0.09134687,59118.0,59117.0,0.529964]
[1725053311451,0.09134687,59118.0,59117.0,0.445382]
[1725053311750,0.09134687,59118.0,59117.0,0.529964]
[1725053312450,0.03062488,59118.0,59117.0,0.529964]
[1725053312654,0.00016644,59120.0,59119.0,0.084579]
[1725053312857,0.03108283,59120.0,59119.0,0.084579]
[1725053317157,0.11565983,59120.0,59119.0,0.084579]
[1725053320667,0.17638182,59120.0,59119.0,0.084579]
[1725053320873,1.68004482,59120.0,59105.0,0.084598]
[1725053321067,0.084592,59110.0,59104.0,0.33105374]
[1725053321262,0.084603,59102.0,59101.0,0.0586]
[1725053321568,0.084608,59099.0,59098.0,0.084608]
[1725053321769,0.14532999,59099.0,59098.0,0.084608]
[1725053322070,0.14532999,59099.0,59098.0,0.0839078]
[1725053322371,0.64532999,59099.0,59098.0,0.0823078]
[1725053323070,0.64532999,59099.0,59098.0,0.1103078]
[1725053323668,0.64532999,59099.0,59098.0,0.021]
[1725053323869,0.76532999,59099.0,59098.0,0.021]
[1725053324176,1.35757799,59099.0,59098.0,0.021]
[1725053324366,1.38813941,59099.0,59098.0,0.021]
[1725053324867,1.51641941,59099.0,59098.0,0.021]
[1725053325169,1.51641941,59099.0,59098.0,0.01]
[1725053325370,1.51641941,59099.0,59098.0,0.016]
[1725053325762,1.51641941,59099.0,59098.0,0.01]
[1725053326060,1.51641941,59099.0,59093.0,0.00025374]
[1725053326061,0.084615,59094.0,59093.0,0.00025374]
[1725053326268,0.26533699,59094.0,59093.0,0.00025374]
[1725053326659,0.76533699,59094.0,59093.0,0.00025374]
[1725053327474,0.704615,59094.0,59093.0,0.00025374]
[1725053328981,1.29691,59094.0,59093.0,0.00025374]
[1725053329171,1.94251,59094.0,59093.0,0.00025374]
[1725053330270,2.00111,59094.0,59093.0,0.00025374]
[1725053330979,2.12943,59094.0,59093.0,0.00025374]
[1725053333381,2.18943,59094.0,59093.0,0.00025374]
[1725053334892,2.91103,59094.0,59093.0,0.00025374]
[1725053336585,2.995645,59094.0,59093.0,0.00025374]
[1725053339490,3.05636268,59094.0,59093.0,0.00025374]
[1725053344981,2.99768268,59094.0,59093.0,0.00025374]
[1725053347584,2.95208268,59094.0,59093.0,0.00025374]
[1725053349585,2.23048268,59094.0,59093.0,0.00025374]
[1725053349787,2.59128268,59094.0,59093.0,0.00025374]
[1725053352503,2.46304268,59094.0,59093.0,0.00025374]
[1725053352696,2.59128268,59094.0,59093.0,0.00025374]
[1725053357598,2.23048268,59094.0,59093.0,0.00025374]
[1725053357904,2.59128268,59094.0,59093.0,0.00025374]
[1725053364104,2.23048268,59094.0,59093.0,0.00025374]
[1725053364406,2.59128268,59094.0,59093.0,0.00025374]
[1725053366103,2.23048268,59094.0,59093.0,0.00025374]
[1725053366800,2.59128268,59094.0,59093.0,0.00025374]
[1725053367602,2.23048268,59094.0,59093.0,0.00025374]
[1725053367902,2.59128268,59094.0,59093.0,0.00025374]
[1725053369202,0.25386,59090.0,59089.0,0.0552]
[1725053369405,0.51235328,59090.0,59089.0,0.0552]
[1725053369799,1.01235328,59090.0,59089.0,0.0552]
[1725053370308,0.20477868,59090.0,59089.0,0.139822]
[1725053370602,0.5,59092.0,59091.0,0.084619]
[1725053370802,0.50827474,59092.0,59091.0,0.084619]
[1725053371002,0.00827474,59092.0,59091.0,0.084619]
[1725053371207,0.5,59094.0,59093.0,0.084616]
[1725053371507,0.29046671,59094.0,59093.0,0.084616]
[1725053371692,0.29889319,59094.0,59093.0,0.084616]
[1725053377703,0.29889319,59094.0,59093.0,0.169232]
[1725053379108,0.12,59095.0,59094.0,0.16923]
[1725053379913,0.62,59095.0,59094.0,0.16923]
[1725053380303,0.12,59095.0,59094.0,0.16923]
[1725053381004,0.5,59096.0,59095.0,0.169226]
[1725053381204,0.5,59096.0,59095.0,0.225526]
[1725053381606,0.00860458,59098.0,59097.0,0.16922]
[1725053381907,0.12,59100.0,59099.0,0.084608]
[1725053382411,0.12863965,59100.0,59099.0,0.084608]
[1725053383513,0.12863965,59100.0,59099.0,0.085608]
[1725053383904,0.12863965,59100.0,59099.0,0.086608]
[1725053384105,0.15898944,59100.0,59099.0,0.086608]
[1725053384504,0.21970712,59100.0,59099.0,0.086608]
[1725053384700,0.21970712,59100.0,59099.0,0.171216]
[1725053384701,0.15898944,59100.0,59099.0,0.171216]
[1725053385406,0.15034979,59100.0,59099.0,0.171216]
[1725053385617,0.15034979,59100.0,59099.0,0.255824]
[1725053392510,0.03034979,59100.0,59099.0,0.255824]
[1725053392718,0.12,59103.0,59102.0,0.169206]
[1725053392911,0.12860176,59103.0,59102.0,0.169206]
[1725053393713,0.12,59103.0,59102.0,0.169206]
[1725053393923,0.12,59103.0,59102.0,0.530006]
[1725053394116,0.12,59103.0,59102.0,0.531006]
[1725053394907,0.12,59103.0,59102.0,0.532006]
[1725053397117,0.12,59103.0,59102.0,0.534006]
[1725053398411,0.12,59103.0,59102.0,0.533006]
[1725053398616,0.12,59103.0,59102.0,0.536006]
[1725053399324,0.12,59103.0,59102.0,0.533006]
[1725053399624,0.12,59103.0,59102.0,0.536006]
[1725053402326,0.18071768,59103.0,59102.0,0.536006]
[1725053402919,0.12,59103.0,59102.0,0.175206]
[1725053403719,0.0302599,59104.0,59103.0,0.169204]
[1725053403919,0.0302599,59104.0,59103.0,0.253806]
[1725053404132,0.00025374,59104.0,59103.0,0.881406]
[1725053404331,0.00025374,59104.0,59103.0,0.373806]
[1725053405227,0.00025374,59104.0,59103.0,0.375806]
[1725053405525,0.00025374,59104.0,59103.0,0.377806]
[1725053407529,0.00025374,59104.0,59103.0,0.40828335]
[1725053409324,0.00025374,59104.0,59103.0,1.12988335]
[1725053410129,0.00025374,59104.0,59103.0,0.40828335]
[1725053410324,0.00025374,59104.0,59103.0,1.12988335]
[1725053410921,0.00025374,59104.0,59103.0,1.21448535]
[1725053411926,0.00025374,59104.0,59103.0,0.49288535]
[1725053412128,0.00025374,59104.0,59103.0,1.21448535]
[1725053412528,0.00025374,59104.0,59103.0,1.09448535]
[1725053412724,0.00025374,59104.0,59103.0,1.21448535]
[1725053413525,7.4e-07,59104.0,59103.0,2.32208535]
[1725053419135,7.4e-07,59104.0,59103.0,2.40668735]
[1725053426353,0.03093763,59122.0,59121.0,0.253728]
[1725053426645,0.0594,59124.0,59123.0,0.169146]
[1725053427330,0.08988125,59124.0,59123.0,0.253719]
[1725053427836,0.08988125,59124.0,59123.0,0.254719]
[1725053428842,0.08988125,59124.0,59123.0,0.255719]
[1725053430043,0.0594,59124.0,59123.0,0.255719]
[1725053431741,0.11605374,59129.0,59123.0,0.340292]
[1725053431942,0.11605374,59129.0,59128.0,0.734498]
[1725053432147,0.14583445,59129.0,59128.0,0.734498]
[1725053433042,0.11605374,59129.0,59128.0,0.734498]
[1725053433547,0.11605374,59129.0,59128.0,0.746498]
[1725053434137,0.11605374,59129.0,59128.0,0.734498]
[1725053434334,0.11605374,59129.0,59128.0,0.745498]
[1725053434735,0.11605374,59129.0,59128.0,0.754498]
[1725053435850,0.11605374,59129.0,59128.0,0.743498]
[1725053436048,0.11605374,59129.0,59128.0,0.753498]
[1725053440737,0.3608,59144.0,59128.0,0.668932]
[1725053440944,0.3608,59144.0,59142.0,0.084546]
[1725053440945,0.12,59143.0,59142.0,0.084546]
[1725053442053,0.385845,59143.0,59142.0,0.084546]
[1725053442251,0.265845,59143.0,59142.0,0.084546]
[1725053442448,0.385845,59143.0,59142.0,0.084546]
[1725053449653,0.265845,59143.0,59142.0,0.084546]
[1725053450361,0.1212,59143.0,59142.0,0.253638]
[1725053450663,0.0592,59143.0,59142.0,0.253638]
[1725053450956,0.03117193,59144.0,59143.0,0.16909]
[1725053451158,0.5,59145.0,59144.0,0.169086]
[1725053451369,0.5,59145.0,59144.0,0.529886]
[1725053451660,0.00016644,59148.0,59147.0,0.084539]
[1725053452056,0.03132438,59148.0,59147.0,0.084539]
[1725053452250,0.00016644,59148.0,59147.0,0.084539]
[1725053452452,0.50016644,59148.0,59147.0,0.084539]
[1725053452857,0.50016644,59148.0,59147.0,0.204539]
[1725053453055,0.61245935,59261.0,59165.0,0.084513]
[1725053453056,0.118,59184.0,59165.0,0.084513]
[1725053453257,0.23783105,59184.0,59176.0,0.3608]
[1725053453460,0.6772,59184.0,59176.0,0.3608]
[1725053453762,0.12,59181.0,59176.0,0.3608]
[1725053453969,0.05188109,59180.0,59176.0,0.3608]
[1725053454272,0.5,59179.0,59178.0,0.084493]
[1725053454450,0.62,59179.0,59178.0,0.084493]
[1725053454655,0.12,59180.0,59178.0,0.084493]
[1725053455257,0.62,59180.0,59178.0,0.084493]
[1725053455657,0.12,59180.0,59178.0,0.084493]
[1725053455858,0.5,59179.0,59178.0,0.089493]
[1725053456454,0.5,59179.0,59178.0,0.094493]
[1725053456962,0.5,59179.0,59178.0,0.01]
[1725053457160,0.5,59179.0,59178.0,0.009]
[1725053457464,1.00696,59179.0,59178.0,0.009]
[1725053458465,1.00696,59179.0,59178.0,0.004]
[1725053458668,1.00696,59179.0,59178.0,0.006]
[1725053459267,1.00696,59179.0,59178.0,0.004]
[1725053459464,1.00696,59179.0,59176.0,0.3608]
[1725053459662,0.27400845,59179.0,59178.0,0.002]
[1725053459859,0.78096845,59179.0,59178.0,0.3628]
[1725053460062,0.78096845,59179.0,59178.0,0.002]
[1725053461064,0.27400845,59179.0,59178.0,0.086495]
[1725053461465,0.084493,59179.0,59178.0,0.086495]
[1725053462162,0.584493,59179.0,59178.0,0.086495]
[1725053462358,0.584493,59179.0,59178.0,0.084495]
[1725053463263,0.694493,59179.0,59178.0,0.084495]
[1725053471667,0.61,59179.0,59178.0,0.084495]
[1725053473671,0.61,59179.0,59178.0,0.087495]
[1725053473876,0.61,59179.0,59178.0,0.090495]
[1725053474173,0.61,59179.0,59178.0,0.087495]
[1725053474371,0.61,59179.0,59178.0,0.090495]
[1725053474680,1.921453,59179.0,59178.0,0.090495]
[1725053474876,1.98207774,59179.0,59178.0,0.090495]
[1725053475175,1.98207774,59179.0,59178.0,0.006]
[1725053475776,2.06657074,59179.0,59178.0,0.006]
[1725053476578,2.06657074,59179.0,59178.0,0.003]
[1725053476969,0.0845,59174.0,59173.0,0.06775552]
[1725053477668,0.5845,59174.0,59173.0,0.06775552]
[1725053478182,0.5845,59174.0,59173.0,0.07175552]
[1725053478183,0.0845,59174.0,59173.0,0.07175552]
[1725053478676,0.669,59174.0,59173.0,0.004]
[1725053478883,0.669,59174.0,59173.0,0.008]
[1725053479070,0.169,59174.0,59173.0,0.008]
[1725053479573,0.669,59174.0,59173.0,0.008]
[1725053479769,0.669,59174.0,59173.0,0.007]
[1725053481167,0.669,59174.0,59155.0,0.0549]
[1725053481168,0.084522,59160.0,59155.0,0.0549]
[1725053481369,0.09317835,59160.0,59159.0,0.084521]
[1725053481969,1.23577635,59160.0,59151.0,0.0557]
[1725053482169,0.084531,59153.0,59152.0,0.084532]
[1725053482373,0.084533,59152.0,59150.0,0.08478752]
[1725053482673,0.796786,59151.0,59150.0,0.00025352]
[1725053482871,0.4130433,59151.0,59150.0,0.00025352]
[1725053483075,0.324386,59151.0,59150.0,0.00025352]
[1725053483380,0.084546,59143.0,59138.0,0.084552]
[1725053483679,0.084546,59143.0,59137.0,0.12]
[1725053483981,0.5,59142.0,59136.0,0.19]
[1725053484986,0.084549,59140.0,59136.0,0.19]
[1725053485371,0.5,59139.0,59136.0,0.19]
[1725053485979,0.8608,59139.0,59136.0,0.274554]
[1725053486180,0.8608,59139.0,59138.0,0.005]
[1725053486678,0.8618,59139.0,59138.0,0.005]
[1725053487181,0.8618,59139.0,59137.0,0.084552]
[1725053487978,0.8608,59139.0,59137.0,0.084552]
[1725053489776,0.8608,59139.0,59137.0,0.088552]
[1725053490086,0.5,59139.0,59137.0,0.088552]
[1725053490385,0.945351,59139.0,59137.0,0.088552]
[1725053490774,0.445351,59139.0,59137.0,0.088552]
[1725053492179,0.945351,59139.0,59137.0,0.088552]
[1725053492387,0.945351,59139.0,59138.0,0.084552]
[1725053494181,0.945351,59139.0,59138.0,0.087552]
[1725053495375,0.584551,59139.0,59138.0,0.087552]
[1725053505289,0.712271,59139.0,59138.0,0.087552]
[1725053505497,0.212271,59139.0,59138.0,0.087552]
[1725053505696,0.212271,59139.0,59138.0,0.003]
[1725053505989,0.212271,59139.0,59138.0,0.087552]
[1725053507496,0.212271,59139.0,59138.0,0.003]
[1725053507691,0.712271,59139.0,59138.0,0.003]
[1725053507893,0.855322,59139.0,59138.0,0.003]
[1725053509995,1.216122,59139.0,59138.0,0.003]
[1725053513693,0.855322,59139.0,59138.0,0.003]
[1725053513896,1.216122,59139.0,59138.0,0.003]
[1725053514690,0.855322,59139.0,59138.0,0.003]
[1725053514898,1.216122,59139.0,59138.0,0.003]
[1725053515398,1.27678683,59139.0,59138.0,0.003]
[1725053515693,0.91598683,59139.0,59138.0,0.003]
[1725053515884,0.855322,59139.0,59138.0,0.003]
[1725053516090,1.216122,59139.0,59138.0,0.003]
[1725053516293,1.27678683,59139.0,59138.0,0.003]
[1725053517990,0.91598683,59139.0,59138.0,0.003]
[1725053518186,1.216122,59139.0,59138.0,0.003]
[1725053518397,1.27678683,59139.0,59138.0,0.003]
[1725053520288,0.91598683,59139.0,59138.0,0.003]
[1725053520488,1.216122,59139.0,59138.0,0.003]
[1725053520686,1.27678683,59139.0,59138.0,0.003]
[1725053522401,1.216122,59139.0,59138.0,0.003]
[1725053522588,1.336122,59139.0,59138.0,0.003]
[1725053524693,1.00385,59139.0,59138.0,0.003]
[1725053525001,1.25157,59139.0,59138.0,0.003]
[1725053525894,1.25157,59139.0,59138.0,0.087552]
[1725053526291,0.89077,59139.0,59138.0,0.087552]
[1725053527197,0.76305,59139.0,59138.0,0.087552]
[1725053527398,0.89077,59139.0,59138.0,0.087552]
[1725053536009,0.89077,59139.0,59138.0,0.448352]
[1725053536215,0.89077,59139.0,59138.0,0.087552]
[1725053543198,0.5,59139.0,59138.0,0.087552]
[1725053543404,0.62,59139.0,59138.0,0.087552]
[1725053543605,0.12,59139.0,59138.0,0.087552]
[1725053544312,0.62,59139.0,59138.0,0.087552]
[1725053548008,0.62,59139.0,59138.0,0.172104]
[1725053549903,0.5,59139.0,59138.0,0.172104]
[1725053550505,0.5,59139.0,59138.0,0.256656]
[1725053551520,0.5,59142.0,59141.0,0.084547]
[1725053552020,0.08479552,59145.0,59144.0,0.084543]
[1725053552222,0.00025352,59145.0,59144.0,0.373629]
[1725053552521,0.12,59161.0,59160.0,0.08452]
[1725053552817,0.12,59161.0,59160.0,0.44532]
[1725053553118,0.62,59161.0,59160.0,0.44532]
[1725053553324,0.62846778,59161.0,59160.0,0.44532]
[1725053554728,0.50846778,59161.0,59160.0,0.44532]
[1725053555119,0.50846778,59161.0,59160.0,0.44632]
[1725053557520,0.5,59161.0,59160.0,0.44632]
[1725053557826,0.5,59163.0,59162.0,0.084517]
[1725053558326,0.12859785,59165.0,59164.0,0.084515]
[1725053558522,0.15236812,59165.0,59164.0,0.084515]
[1725053558716,0.65236812,59165.0,59164.0,0.084515]
[1725053559125,0.15236812,59165.0,59164.0,0.084515]
[1725053559423,0.15236812,59165.0,59164.0,0.084455]
[1725053559627,0.02377027,59165.0,59164.0,0.084455]
[1725053559823,0.5,59165.0,59164.0,0.084455]
[1725053560028,0.00025352,59166.0,59165.0,0.084513]
[1725053560222,0.00025352,59166.0,59165.0,0.445313]
[1725053560730,0.03325475,59166.0,59165.0,0.445313]
[1725053561023,0.09388679,59166.0,59165.0,0.445313]
[1725053561233,0.03325475,59166.0,59165.0,0.445313]
[1725053561439,0.53325475,59166.0,59165.0,0.445313]
[1725053561847,0.03325475,59166.0,59165.0,0.445313]
[1725053562032,0.03325475,59166.0,59165.0,0.446313]
[1725053562240,0.09388679,59166.0,59165.0,0.446313]
[1725053562439,0.53325475,59166.0,59165.0,0.446313]
[1725053562641,0.59388679,59166.0,59165.0,0.446313]
[1725053562835,0.03325475,59166.0,59165.0,0.446313]
[1725053563143,0.08554018,59166.0,59165.0,0.446313]
[1725053563439,0.52490814,59166.0,59165.0,0.446313]
[1725053563844,0.02490814,59166.0,59165.0,0.446313]
[1725053564442,0.52490814,59166.0,59165.0,0.446313]
[1725053564946,0.57679678,59166.0,59165.0,0.446313]
[1725053565141,0.5767968,59166.0,59165.0,0.446313]
[1725053565842,0.5767968,59166.0,59165.0,0.085513]
[1725053566043,0.5767968,59166.0,59165.0,0.446313]
[1725053569336,0.5767968,59166.0,59165.0,0.953353]
[1725053569337,0.0767968,59166.0,59165.0,0.953353]
[1725053569741,0.02490814,59166.0,59165.0,0.953353]
[1725053572231,0.02490814,59166.0,59165.0,1.037866]
[1725053572632,0.02490814,59166.0,59165.0,0.677066]
[1725053573141,0.02490814,59166.0,59165.0,1.037866]
[1725053575155,0.02490814,59166.0,59165.0,0.170026]
[1725053575450,0.02490814,59166.0,59165.0,0.530826]
[1725053575844,0.0767943,59166.0,59165.0,0.530826]
[1725053576649,0.0767943,59166.0,59165.0,1.037866]
[1725053577349,0.0767943,59166.0,59165.0,0.530826]
[1725053577740,0.0767943,59166.0,59165.0,0.615339]
[1725053582152,0.0767943,59166.0,59165.0,1.122379]
[1725053582660,0.13742634,59166.0,59165.0,1.122379]
[1725053582952,0.02490814,59166.0,59165.0,1.122379]
[1725053583247,0.02490814,59166.0,59165.0,0.615339]
[1725053585455,0.02490814,59166.0,59165.0,0.254539]
[1725053585756,0.02490814,59166.0,59165.0,0.615339]
[1725053585946,0.02490814,59166.0,59165.0,0.254539]
[1725053586146,0.02490814,59166.0,59165.0,0.615339]
[1725053586652,0.02490814,59166.0,59165.0,0.614339]
[1725053586853,0.02590814,59166.0,59165.0,0.625339]
[1725053587042,0.00125352,59166.0,59165.0,0.625339]
[1725053587240,0.00225352,59166.0,59165.0,0.625339]
[1725053588054,0.00225352,59166.0,59165.0,0.614339]
[1725053588055,0.00125352,59166.0,59165.0,0.614339]
[1725053588251,0.00225352,59166.0,59165.0,0.624339]
[1725053588750,0.00225352,59166.0,59165.0,0.744339]
[1725053590858,0.11476748,59166.0,59165.0,0.744339]
[1725053595263,0.33434315,59166.0,59165.0,0.744339]
[1725053595563,0.11477004,59166.0,59165.0,0.744339]
[1725053595856,0.19928204,59166.0,59165.0,0.455313]
[1725053596256,0.14739756,59166.0,59165.0,0.094513]
[1725053596660,0.19928625,59166.0,59165.0,0.094513]
[1725053596856,0.14739756,59166.0,59165.0,0.094513]
[1725053597467,0.14739756,59166.0,59165.0,0.01]
[1725053597468,1.42346156,59166.0,59165.0,0.01]
[1725053597857,2.05102156,59166.0,59165.0,0.01]
[1725053599555,2.17102156,59166.0,59165.0,0.01]
[1725053603272,0.084523,59158.0,59157.0,0.084524]
[1725053603566,0.084526,59156.0,59155.0,0.00025352]
[1725053603758,0.529852,59156.0,59155.0,0.00025352]
[1725053603955,1.69760404,59156.0,59155.0,0.00025352]
[1725053604159,1.69760404,59156.0,59144.0,0.12]
[1725053604160,0.084545,59143.0,59142.0,0.084545]
[1725053604363,0.09313709,59143.0,59142.0,0.084545]
[1725053604565,0.084554,59137.0,59135.0,0.413156]
[1725053604865,0.1734,59136.0,59132.0,0.3608]
[1725053605071,0.12,59133.0,59130.0,0.084563]
[1725053605270,0.5,59135.0,59130.0,0.084563]
[1725053605460,0.5,59132.0,59130.0,0.084563]
[1725053605667,0.113,59133.0,59130.0,0.084563]
[1725053606067,0.084566,59128.0,59127.0,0.00025352]
[1725053606267,0.204566,59128.0,59127.0,0.00025352]
[1725053606762,0.704566,59128.0,59127.0,0.00025352]
[1725053607162,0.204566,59128.0,59127.0,0.00025352]
[1725053607357,0.08457,59126.0,59118.0,0.084579]
[1725053607567,0.12,59121.0,59118.0,0.084579]
[1725053608567,0.12,59121.0,59114.0,0.00025352]